Cogmind - Beta 9.4 @@@ ROGUE MODE // 2020.01.09 @ 16:29:16 // Winter2019/RPGLIKE Player: Rumbl3 Result: Heading to fleet! Performance ------------- Evolutions (9) 4500 Regions Visited (30) 6000 Robots Destroyed (480) 2400 Value Destroyed (23534) 23534 Prototype IDs (78) 1560 Alien Tech Used (5) 1000 Bonus (20271) 20271 TOTAL SCORE: 59265 Bonus ------- Triggered High Security 500 High Alert Combat Kills 6306 Follower Combat Kills 2005 Network Hubs Disabled 600 Met Data Miner 300 Met Zhirov 300 Met Warlord at Base 500 MAIN.C Attacked Warlord 500 Warlord Defense Kill 2154 Met R17 at Cetus 500 Found Hidden Lab 3000 Used Core Reset Matrix 3000 Met Warlord at Research 2000 Win 3000 Friendly Fire -4394 Cogmind --------- Core Integrity 854/1250 Matter 280/300 Energy 696/700 System Corruption 0% Temperature Cool (0) Movement Hovering (38) Location To Fleet Rendezvous Parts ------- > --- POWER (2) -------- Vortex Chain Reactor > --- PROPULSION (4) --- Cooled Gravmag System Cooled Gravmag System Cooled Antigrav System Cooled Antigrav System > --- UTILITY (14) ----- Experimental Coolant Injector Experimental Sensor Array Advanced Signal Interpreter Long-range Terrain Scanner Advanced Targeting Computer Advanced Targeting Computer Advanced Target Analyzer Experimental Core Analyzer Kinecellerator Reaction Control System Experimental Phase Shifter Experimental Powered Armor Experimental Hacking Suite > --- WEAPON (4) ------- Improved KE Penetrator Improved KE Penetrator Improved KE Penetrator Vortex Lance > --- INVENTORY (6) ---- Advanced Heat Sink Improved Proton Missile Launcher Precision Rocket Launcher Particle Cleaver Vortex Lance Peak State ------------ > --- POWER ------------ Vortex Chain Reactor > --- PROPULSION ------- Cooled Gravmag System Cooled Gravmag System Cooled Antigrav System Cooled Antigrav System > --- UTILITY ---------- Improved Coolant Injector Experimental Sensor Array Advanced Signal Interpreter Long-range Terrain Scanner Advanced Targeting Computer Advanced Targeting Computer Advanced Target Analyzer Advanced Core Analyzer Experimental Core Analyzer Reaction Control System Experimental Phase Shifter Experimental Powered Armor Experimental Hacking Suite Deep Network Scanner > --- WEAPON ----------- Improved KE Penetrator Improved KE Penetrator Improved KE Penetrator Particle Cleaver > --- INVENTORY -------- Protomatter Core Reset Matrix Improved Proton Missile Launcher Precision Rocket Launcher Vortex Lance Vortex Lance [Rating: 184] Favorites ----------- Power Light Angular Momentum Engine Engine Light Angular Momentum Engine Power Core Light Nuclear Core Reactor Vortex Chain Reactor Propulsion Cooled Antigrav System Leg Aluminum Leg Wheel Wheel Hover Unit Cooled Antigrav System Utility Advanced Targeting Computer Device Long-range Terrain Scanner Storage Energy Well Processor Advanced Targeting Computer Hackware Advanced System Shield Protection Medium Regenerative Plating Weapon Improved KE Penetrator Energy Gun EM Pulse Gun Ballistic Gun Improved KE Penetrator Launcher Improved Proton Missile Launcher Impact Weapon Great Maul Slashing Weapon Phasing Sabre Piercing Weapon Vortex Lance Build | -11 -10 -10 -9 -9 -8 -7 -7 -7 -7 -6 -6 -6 -6 -6 -6 -5 -5 -5 -5 -4 -4 -4 -4 -4 -3 -3 -3 -3 -2 -1 ------- Run | Scr Mat Min Mat Min Mat Fac Low Low Dat Pro Fac Ext Cet Arc Hub Fac Upp Upp War Pro Fac Upp Upp Zhi Pro Res Arm Lab Res Acc Slots Evolved 19 | 3 . . 1 1 2 2 . 2 . . . 2 1 . 1 1 . . 1 . 1 . . . . . . 1 . . Power 1 | . . . . . 1 . . . . . . . . . . . . . . . . . . . . . . . . . Propulsion 3 | 1 . . . . 1 . . . . . . . . . 1 . . . . . . . . . . . . . . . Utility 13 | 1 . . 1 . . 2 . 2 . . . 2 1 . . 1 . . 1 . 1 . . . . . . 1 . . Weapon 2 | 1 . . . 1 . . . . . . . . . . . . . . . . . . . . . . . . . . Parts Attached 252 | 5 6 2 6 1 7 18 6 9 . 8 18 20 16 . 12 18 9 9 15 9 9 5 . 6 1 . 18 3 9 7 Power 15 | 1 1 . 1 . 2 1 . . . . 1 3 . . . . 2 2 1 . . . . . . . . . . . Engine 12 | 1 . . 1 . 2 1 . . . . . 3 . . . . 2 2 . . . . . . . . . . . . Core 2 | . 1 . . . . . . . . . 1 . . . . . . . . . . . . . . . . . . . Reactor 1 | . . . . . . . . . . . . . . . . . . . 1 . . . . . . . . . . . Propulsion 26 | 2 1 . 1 . 2 4 2 . . . . 4 2 . 3 . . . 3 . . . . 2 . . . . . . Treads . | . . . . . . . . . . . . . . . . . . . . . . . . . . . . . . . Leg . | . . . . . . . . . . . . . . . . . . . . . . . . . . . . . . . Wheel 2 | 2 . . . . . . . . . . . . . . . . . . . . . . . . . . . . . . Hover 24 | . 1 . 1 . 2 4 2 . . . . 4 2 . 3 . . . 3 . . . . 2 . . . . . . Flight . | . . . . . . . . . . . . . . . . . . . . . . . . . . . . . . . Utility 70 | 1 . 1 2 . 2 3 2 1 . 2 5 6 2 . . 4 . 1 7 1 5 3 . 3 . . 8 3 6 2 Device 44 | . . 1 1 . 1 2 2 1 . 2 4 2 2 . . 1 . 1 5 1 3 2 . 2 . . 5 1 3 2 Storage 3 | . . . . . . . . . . . . 1 . . . . . . 1 . . . . . . . 1 . . . Processor 17 | 1 . . 1 . 1 1 . . . . 1 1 . . . 3 . . 1 . 2 1 . . . . 2 . 2 . Hackware 3 | . . . . . . . . . . . . 1 . . . . . . . . . . . . . . . 1 1 . Protection 3 | . . . . . . . . . . . . 1 . . . . . . . . . . . 1 . . . 1 . . Artifact . | . . . . . . . . . . . . . . . . . . . . . . . . . . . . . . . Weapon 141 | 1 4 1 2 1 1 10 2 8 . 6 12 7 12 . 9 14 7 6 4 8 4 2 . 1 1 . 10 . 3 5 Energy Gun 17 | 1 2 1 1 . 1 2 . . . 1 4 1 3 . . . . . . . . . . . . . . . . . Energy Cannon . | . . . . . . . . . . . . . . . . . . . . . . . . . . . . . . . Ballistic Gun 30 | . 2 . 1 . . 4 1 . . 1 1 . 5 . 4 7 1 1 1 . . 1 . . . . . . . . Ballistic Cannon . | . . . . . . . . . . . . . . . . . . . . . . . . . . . . . . . Launcher 40 | . . . . . . 1 1 4 . 2 2 4 2 . . 1 4 4 2 5 . 1 . . . . 5 . . 2 Special Weapon . | . . . . . . . . . . . . . . . . . . . . . . . . . . . . . . . Impact Weapon 10 | . . . . . . . . 3 . 2 5 . . . . . . . . . . . . . . . . . . . Slashing Weapon 30 | . . . . 1 . 3 . 1 . . . 2 2 . 5 6 2 1 . . . . . . . . 3 . 2 2 Piercing Weapon 14 | . . . . . . . . . . . . . . . . . . . 1 3 4 . . 1 1 . 2 . 1 1 Special Melee Weapon . | . . . . . . . . . . . . . . . . . . . . . . . . . . . . . . . Unidentified Prototypes 36 | . . . 1 . . 2 . 1 . . 1 1 2 . 1 1 . 1 7 . . . . 4 . . 4 4 5 1 Parts Lost 2 | . . . . . . . . . . . . . . . . . . . 1 . . . . . . . . . . 1 Power . | . . . . . . . . . . . . . . . . . . . . . . . . . . . . . . . Propulsion . | . . . . . . . . . . . . . . . . . . . . . . . . . . . . . . . Utility 2 | . . . . . . . . . . . . . . . . . . . 1 . . . . . . . . . . 1 Weapon . | . . . . . . . . . . . . . . . . . . . . . . . . . . . . . . . Highest Loss Streak 1 | . . . . . . . . . . . . . . . . . . . 1 . . . . . . . . . . 1 Average Slot Usage (%) 93 | . 84 92 100 100 100 100 100 86 86 86 85 92 93 94 93 93 95 95 91 90 90 91 91 91 95 95 94 93 94 93 Engine 6 | . 5 . 1 11 16 15 15 13 13 13 9 9 11 11 10 10 10 9 3 . . . . . . . . . . . Reactor 1 | . . . . . . . . . . . . . . . . . . . 2 4 4 4 4 4 4 4 4 4 4 4 Hover 16 | . . 14 22 24 26 23 23 20 20 20 20 19 11 11 11 15 15 14 13 13 13 13 13 15 17 17 17 16 16 16 Device 20 | . . 7 15 24 18 22 23 20 20 20 19 21 18 22 21 15 20 19 18 18 21 26 26 23 26 26 25 23 25 25 Storage 2 | . . . . . . . . . . . . 1 5 5 5 5 5 4 6 9 3 . . . . . . . . . Processor 17 | . 14 14 13 11 9 14 15 13 13 13 13 17 16 16 15 19 20 19 18 18 20 21 21 21 21 21 21 20 20 20 Hackware 3 | . . . . . . . . . . . . . 5 5 5 5 5 4 4 4 4 4 4 4 4 4 4 5 8 5 Protection 2 | . . . . . . . . . . . . . 5 5 5 5 5 4 4 4 4 4 4 4 4 4 4 4 4 4 Energy Gun 1 | . 15 14 13 11 11 7 4 . . . 1 . . . . . . . . . . . . . . . . . . . Ballistic Gun 12 | . 12 14 13 11 9 10 15 13 13 13 13 12 12 16 13 13 11 13 12 13 13 12 13 13 13 13 13 12 12 12 Launcher 1 | . . . . . . . 2 3 . 1 . 3 1 . . . 2 3 2 2 . . . . . . . . . . Slashing Weapon 1 | . . . . 3 7 3 . . . . . . 1 . 2 1 . . . . . . . . . . 1 4 3 3 Naked Turns . | . . . . . . . . . . . . . . . . . . . . . . . . . . . . . . . Heaviest Build 85 | 9 9 9 14 16 22 27 34 44 41 43 43 58 60 59 59 61 63 73 84 85 81 80 78 78 78 78 82 80 80 83 Greatest Support 91 | 31 31 11 17 17 25 32 32 42 42 42 42 65 65 65 77 77 77 77 91 91 91 91 91 91 89 89 89 89 89 89 Greatest Overweight (x) 2 | . . . . . . . 1 1 . 1 1 1 . . 2 . . . 1 . . . . 1 . . . . . . Average Overweight (x) . | . . . . . . . . . . . . . . . . . . . . . . . . . . . . . . . Largest Inventory Capacity 6 | 2 2 2 3 4 4 5 5 5 5 5 5 5 5 5 5 5 5 5 5 5 5 5 5 6 6 6 6 6 6 6 Average Capacity 4 | 2 2 2 2 3 4 4 5 5 5 5 5 5 5 5 5 5 5 5 5 5 5 5 5 5 6 6 6 6 6 6 Most Carried 6 | 2 2 2 3 4 4 5 5 5 5 5 5 5 5 5 5 5 5 5 5 5 5 5 5 6 6 6 6 6 6 6 Average Carried 4 | . 1 2 2 3 3 4 5 5 5 5 4 4 4 5 4 4 4 3 4 5 5 4 5 5 6 6 6 5 6 5 Final Capacity 6 | 2 2 2 3 4 4 5 5 5 5 5 5 5 5 5 5 5 5 5 5 5 5 5 5 6 6 6 6 6 6 6 Final Carried 6 | 2 2 2 3 3 4 5 5 5 5 5 5 5 5 5 5 5 5 3 5 5 5 5 5 6 6 6 6 6 6 5 Class Distribution -------------------- 72% | Scavenger-Scout 7% | Hacker-Scout 4% | Scout 3% | Scavenger-Mutant 3% | Scavenger-Skirmisher 3% | Commander-Scout Dominant Class ---------------- Mutant | -10/Materials Scavenger-Mutant | -10/Mines Scavenger-Mutant | -9/Materials Scout | -9/Mines Scavenger-Scout | -8/Materials Scavenger-Scout | -7/Factory Scout | -7/Lower Caves Scavenger-Skirmisher | -7/Lower Caves Scavenger-Scout | -7/Data Miner Scavenger-Scout | -6/Proximity Caves Scavenger-Scout | -6/Factory Scavenger-Scout | -6/Extension Scavenger-Scout | -6/Cetus Scavenger-Scout | -6/Archives Scavenger-Scout | -6/Hub_04(d) Scavenger-Scout | -5/Factory Scavenger-Scout | -5/Upper Caves Scavenger-Scout | -5/Upper Caves Scavenger-Scout | -5/Warlord Scavenger-Scout | -4/Proximity Caves Scavenger-Scout | -4/Factory Scavenger-Scout | -4/Upper Caves Scavenger-Scout | -4/Upper Caves Scavenger-Scout | -4/Zhirov Scavenger-Scout | -3/Proximity Caves Scavenger-Scout | -3/Research Scavenger-Scout | -3/Armory Scavenger-Scout | -3/Lab Hacker-Scout | -2/Research Scavenger-Scout | -1/Access Resources | -11 -10 -10 -9 -9 -8 -7 -7 -7 -7 -6 -6 -6 -6 -6 -6 -5 -5 -5 -5 -4 -4 -4 -4 -4 -3 -3 -3 -3 -2 -1 ----------- Run | Scr Mat Min Mat Min Mat Fac Low Low Dat Pro Fac Ext Cet Arc Hub Fac Upp Upp War Pro Fac Upp Upp Zhi Pro Res Arm Lab Res Acc Matter Collected 13771 | 230 94 40 110 52 126 251 268 1186 . 1297 330 1046 492 140 556 625 647 572 433 729 805 518 597 34 104 . 1141 . 688 660 Remotely . | . . . . . . . . . . . . . . . . . . . . . . . . . . . . . . . Salvage Created 22809 | 30 191 241 216 207 373 402 384 404 . 895 1140 1859 892 253 1438 992 1176 727 576 1534 1526 900 1141 34 91 40 1906 . 1360 1881 Parts 1161 | 2 20 12 18 11 36 20 15 34 . 27 40 104 35 11 84 33 48 42 52 68 91 44 58 1 6 8 101 . 66 74 Haulers Intercepted 4 | . . . . . . . . . . . . . . . 2 . . . . . . . . . . . . . 2 . Recyclers Shooed 8 | . . 2 . . 1 . . . . . 1 2 . . . . . . . . . . . . . . . . 1 1 Parts Field Recycled . | . . . . . . . . . . . . . . . . . . . . . . . . . . . . . . . Retrieved Matter . | . . . . . . . . . . . . . . . . . . . . . . . . . . . . . . . Parts Self-Destructed 382 | . . . . . . . 7 27 . 17 . . . . . . 28 32 126 41 . 41 56 1 6 . . . . . Prevented 62 | . . . . . . . 7 10 . 13 . . . . . . 15 3 . 14 . . . . . . . . . . Kills | -11 -10 -10 -9 -9 -8 -7 -7 -7 -7 -6 -6 -6 -6 -6 -6 -5 -5 -5 -5 -4 -4 -4 -4 -4 -3 -3 -3 -3 -2 -1 ------- Run | Scr Mat Min Mat Min Mat Fac Low Low Dat Pro Fac Ext Cet Arc Hub Fac Upp Upp War Pro Fac Upp Upp Zhi Pro Res Arm Lab Res Acc Combat Hostiles Destroyed 379 | . 7 2 6 4 5 4 9 21 . 8 12 29 12 4 21 10 22 21 18 33 22 18 19 . 2 1 34 . 19 16 Melee 2 | . . . . . . . . . . . . . . . 1 1 . . . . . . . . . . . . . . Guns 289 | . 7 2 5 4 4 4 2 10 . 3 6 19 12 4 20 9 15 13 18 15 22 14 19 . 2 1 27 . 18 14 AOE 83 | . . . 1 . 1 . 7 11 . 5 5 8 . . . . 6 8 . 18 . 4 . . . . 7 . 1 1 Classes Destroyed 24 | 1 4 1 1 . 1 . 3 . . 1 2 1 1 . 1 . . . 1 2 . . 2 . . . . . 2 . Worker 21 | . 1 . . . 2 1 . . . . 1 . . . 13 . . . . . 1 . . . . . . . 2 . Builder 10 | . . . . . . . . . . . 2 3 . . 3 . . . . . . . . . . . . . 1 1 Tunneler 6 | 1 . 1 . . . 1 . . . . 1 . . . . 1 . . . . 1 . . . . . . . . . Hauler 4 | . . . . . . . . . . . . . . . 2 . . . . . . . . . . . . . 2 . Recycler 13 | . . 3 . . . 2 . . . . 3 . . . . . . . . . 1 . . . . . . . 1 3 Carrier 1 | . . . . . . . . . . . . . 1 . . . . . . . . . . . . . . . . . Mechanic 2 | . . . . . . . . . . . . . . . . . . . . 1 . . . . . . 1 . . . Operator 5 | . 1 . 1 . 1 . . . . . . . . 1 . . . . . . . . . . . . 1 . . . Watcher 31 | . . . 1 . 2 1 . . . . 1 2 2 . 2 4 . . . . 8 . . . . 1 3 . 2 2 Swarmer 91 | . 3 . 2 1 . . 1 13 . 4 3 1 2 . 3 . 6 11 . 15 . 8 3 . . . 9 . 3 3 Grunt 135 | . 4 2 5 3 1 . 3 6 . 2 5 16 4 . 13 2 1 4 8 9 11 7 11 . . . 7 . 7 4 Brawler 7 | . . . . . . . 1 . . . . . 1 . . . 1 2 1 . . . . . . . . . 1 . Duelist 11 | . . . . . . . 2 1 . 1 1 . . . . . 3 1 . 1 . . . . . . 1 . . . Protector 3 | . . . . . . . . . . 1 . . . . . . . . 2 . . . . . . . . . . . Sentry 53 | . . . . . 4 4 1 1 . . 2 7 . 4 4 6 1 1 . 2 4 . 1 . . 1 8 . . 2 Demolisher 4 | . . . . . . . . . . . . . . . . . . . 2 . . . . . . . 2 . . . Specialist 1 | . . . . . . . . . . . . . . . . . . . . 1 . . . . . . . . . . Hunter 30 | . . . . . . . . . . . 1 1 . . . . 5 2 2 4 4 . 2 . 2 . . . 5 2 Programmer 28 | . . . . . . . 1 . . . . 2 1 . 1 2 . . 3 2 3 2 . . . . 6 . 1 4 Behemoth 8 | . . . . . . . . . . . . 2 . . . . 1 1 . . . 1 1 . . . 1 . . 1 Cetus Guard 4 | . . . . . . . . . . . . . 4 . . . . . . . . . . . . . . . . . Striker 1 | . . . . . . . . . . . . . . . . . . . . . . . . . . . . . 1 . Executioner 1 | . . . . . . . . . . . . . . . . . . . . . . . . . . . . . 1 . Decomposer 1 | . . . . . . . . . . . . . . . . . . 1 . . . . . . . . . . . . Samaritan 2 | . . . . . . . . . . . . . . . . . . . . . . . 2 . . . . . . . Thug 4 | . . . . . . . . . . . . . . . . . 4 . . . . . . . . . . . . . Savage 1 | . . . . . . . . . . . . . 1 . . . . . . . . . . . . . . . . . Mutant 1 | . . . . . . . . . . . . . . . . . . . . . . . 1 . . . . . . . Best Kill Streak 14 | 1 3 2 6 3 2 2 8 8 . 6 14 6 6 5 14 14 5 7 10 9 10 7 6 . 2 2 6 . 7 10 Combat Bots Only 10 | . 3 2 3 3 1 1 8 8 . 6 9 5 5 4 9 2 5 7 10 5 7 7 6 . 2 1 6 . 4 5 Max Kills in Single Turn 6 | 1 2 1 2 1 2 2 3 5 . 3 3 3 2 1 6 1 3 5 3 4 2 2 2 . 1 1 3 . 2 2 Gunslinging 2 | . . . . . . . . . . . . . . . 2 . 1 1 1 1 1 . 1 . . . . . 1 1 Exploded 5 | . . . 1 . 1 . 2 3 . 2 3 2 . . . . 3 5 . 4 . 2 . . . . 3 . 1 1 Melee 1 | . . . . . . . . . . . . . . . 1 1 . . . . . . . . . . . . . . Uniques/NPCs Destroyed 1 | . . . . . . . . . . . . 1 . . . . . . . . . . . . . . . . . . A7 (-6/Extension) Combat | -11 -10 -10 -9 -9 -8 -7 -7 -7 -7 -6 -6 -6 -6 -6 -6 -5 -5 -5 -5 -4 -4 -4 -4 -4 -3 -3 -3 -3 -2 -1 -------- Run | Scr Mat Min Mat Min Mat Fac Low Low Dat Pro Fac Ext Cet Arc Hub Fac Upp Upp War Pro Fac Upp Upp Zhi Pro Res Arm Lab Res Acc Damage Taken 19606 | . 410 84 244 79 283 627 362 404 . 152 910 1438 882 237 2116 576 917 925 988 1117 803 890 1242 . 43 . 1511 . 1271 1095 Core 14566 | . 326 69 208 66 229 497 304 336 . 125 721 1171 632 162 1517 396 672 655 747 800 601 631 940 . 33 . 1074 . 876 778 Absorbed by Shields 15 | . . . . . . . . . . . . 15 . . . . . . . . . . . . . . . . . . Redirected to Core 12284 | . 272 56 128 42 184 410 205 230 . 95 626 923 612 122 1296 333 552 569 576 749 550 501 821 . 33 . 968 . 774 657 Core Remaining (%) 87 | 100 . 100 . 96 82 . . . . 98 . . . . 20 . . . . 100 . . . . 100 . . 100 100 68 Volleys Fired 863 | 6 24 19 17 15 22 21 17 19 . 10 25 77 31 13 41 42 40 35 24 46 62 32 48 . 4 2 75 . 45 51 Largest 4 | 2 2 2 2 2 3 3 3 3 . 3 3 3 3 3 3 3 3 4 3 4 3 3 3 . 3 3 3 . 3 4 Hottest 148 | 90 70 70 70 63 128 116 101 97 . 97 113 113 113 105 105 105 113 148 105 148 105 113 105 . 105 105 105 . 105 148 Shots Fired 2308 | 12 48 38 32 29 47 56 46 34 . 28 68 178 77 39 111 123 107 103 72 131 186 92 144 . 12 6 209 . 135 145 Gun 2171 | 12 48 38 32 29 47 56 42 25 . 20 62 154 70 39 111 123 87 91 72 105 186 89 144 . 12 6 201 . 135 135 Cannon . | . . . . . . . . . . . . . . . . . . . . . . . . . . . . . . . Launcher 137 | . . . . . . . 4 9 . 8 6 24 7 . . . 20 12 . 26 . 3 . . . . 8 . . 10 Special . | . . . . . . . . . . . . . . . . . . . . . . . . . . . . . . . Kinetic 2021 | . 24 19 17 14 22 37 34 25 . 20 50 153 70 39 111 123 87 91 72 105 186 89 144 . 12 6 201 . 135 135 Thermal 65 | 6 20 14 3 . 3 19 . . . . . . . . . . . . . . . . . . . . . . . . Explosive 28 | . . . . . . . . 4 . . . . . . . . 2 4 . 7 . 3 . . . . 8 . . . Electromagnetic 194 | 6 4 5 12 15 22 . 12 5 . 8 18 25 7 . . . 18 8 . 19 . . . . . . . . . 10 Robot Hit Streak 56 | 7 8 13 10 13 11 11 9 7 . 9 11 25 10 14 22 13 16 30 13 14 27 26 56 . 16 20 21 . 25 41 Robot Miss Streak 6 | 2 3 2 3 3 3 5 2 2 . 2 3 3 4 2 2 3 4 6 2 3 4 1 1 . . . 2 . 4 1 Penetration Max 1 | . . . . . . 1 . 1 . . 1 1 1 1 1 . 1 1 1 1 1 1 1 . 1 . 1 . 1 1 Secondary Targets 52 | . 1 1 2 . . . . . . . . 3 4 . 8 . 3 1 7 3 4 5 4 . . . 1 . 4 1 Max Gunslinging Chain 2 | . 1 1 1 . . . . . . . . 1 1 . 2 . 1 1 1 1 1 1 1 . . . 1 . 1 1 Shots Hit Robots 1695 | 9 33 29 22 19 32 42 37 16 . 30 59 116 46 32 86 78 66 72 53 96 135 70 122 9 12 4 150 . 108 112 Core Hits 968 | 2 16 15 14 7 20 18 24 31 . 24 34 72 34 11 72 33 40 41 32 72 72 38 39 3 5 2 84 . 61 52 Critical Hits 371 | . . . . . . . . 3 . 1 5 7 11 12 23 16 16 24 20 25 50 20 27 . 4 2 50 . 29 26 Critical Kills 125 | . . . . . . . . 1 . . 2 4 6 3 13 2 4 5 11 6 19 3 10 . 1 2 15 . 9 9 Critical Parts Destroyed 189 | . . . . . . . . 2 . 1 3 3 4 7 10 12 10 15 7 14 24 12 14 . 2 . 23 . 14 12 Melee Attacks 266 | . . . . 5 12 14 . 1 . 17 25 9 7 . 36 17 3 1 . 7 16 4 2 9 . 1 24 3 33 20 Impact 43 | . . . . . . . . 1 . 17 25 . . . . . . . . . . . . . . . . . . . Slashing 179 | . . . . 5 12 14 . . . . . 9 7 . 36 17 3 1 . . . . . . . . 19 3 33 20 Piercing 2 | . . . . . . . . . . . . . . . . . . . . . . . . . . . 2 . . . Entropic 42 | . . . . . . . . . . . . . . . . . . . . 7 16 4 2 9 . 1 3 . . . Sneak Attacks 21 | . . . . . . 3 . . . . 3 8 . . 2 . . . . . . . 2 . . . . . 2 1 Combat Hostiles . | . . . . . . . . . . . . . . . . . . . . . . . . . . . . . . . Follow-up Attacks . | . . . . . . . . . . . . . . . . . . . . . . . . . . . . . . . Damage Inflicted 66416 | 106 404 320 393 262 981 984 1315 1651 . 1984 2560 4875 1652 864 4312 2248 2803 3437 1853 5874 4856 2723 4049 2207 328 122 5480 . 3616 4157 Guns 44182 | 106 325 282 293 262 515 629 469 504 . 354 1178 2717 1161 864 2730 2034 1764 2242 1853 2353 4526 2286 3489 . 328 122 4736 . 2553 3507 Cannons . | . . . . . . . . . . . . . . . . . . . . . . . . . . . . . . . Explosions 14021 | . 79 38 100 . 431 . 846 1147 . 603 1117 1347 491 . 1268 17 1039 1195 . 2245 165 437 . . . . 744 . 290 422 Melee 8213 | . . . . . 35 355 . . . 1027 265 811 . . 314 197 . . . 1276 165 . 560 2207 . . . . 773 228 Ramming . | . . . . . . . . . . . . . . . . . . . . . . . . . . . . . . . Kinetic 42695 | . 100 89 145 125 236 459 441 504 . 354 1000 2694 1161 864 2730 2034 1764 2242 1853 2353 4526 2286 3489 . 328 122 4736 . 2553 3507 Thermal 2319 | 39 256 189 125 . 167 170 365 276 . . 283 167 . . 46 . . . . 71 165 . . . . . . . . . Explosive 4805 | . . . . . 296 . . 518 . . . . . . . . 421 858 . 1241 . 437 . . . . 744 . 290 . Electromagnetic 8384 | 67 48 42 123 137 247 . 509 353 . 603 1012 1203 491 . 1222 17 618 337 . 933 . . . . . . . . . 422 Impact 1292 | . . . . . . . . . . 1027 265 . . . . . . . . . . . . . . . . . . . Slashing 2713 | . . . . . 35 355 . . . . . 811 . . 314 197 . . . . . . . . . . . . 773 228 Piercing . | . . . . . . . . . . . . . . . . . . . . . . . . . . . . . . . Entropic 4208 | . . . . . . . . . . . . . . . . . . . . 1276 165 . 560 2207 . . . . . . Highest Corruption 8 | . . . 1 1 . 2 2 3 3 3 . . . . 8 1 1 1 1 2 3 3 3 3 3 . 3 3 . 1 Average Corruption 1 | . . . 1 1 . 2 2 2 3 3 . . . . 1 1 1 1 1 1 2 3 3 3 3 . 2 3 . 1 Corruption Purged . | . . . . . . . . . . . . . . . . . . . . . . . . . . . . . . . Effects 118 | . . . . 3 . 7 10 11 . 10 . . . . 4 1 4 2 3 7 11 11 15 1 4 . 12 1 . 1 Message Errors 36 | . . . . 1 . 2 2 3 . 2 . . . . 2 . 2 2 2 2 4 3 3 . 2 . 3 . . 1 Matter Fused 17 | . . . . . . . . 1 . 3 . . . . . . . . . . 4 1 4 . 1 . 3 . . . Heat Flow Errors 9 | . . . . . . . 2 2 . . . . . . . . . . . 1 1 2 . . 1 . . . . . Energy Discharges 19 | . . . . 1 . 5 3 2 . . . . . . . . 1 . . 2 . 1 1 1 . . 1 1 . . Parts Rejected 1 | . . . . . . . . . . . . . . . 1 . . . . . . . . . . . . . . . Data Loss (minor) 11 | . . . . . . . 3 1 . 4 . . . . . 1 1 . . . . . 1 . . . . . . . Targeting Errors 23 | . . . . . . . . 2 . 1 . . . . . . . . 1 2 2 4 6 . . . 5 . . . Weapon Failures 2 | . . . . 1 . . . . . . . . . . 1 . . . . . . . . . . . . . . . Overload Shots . | . . . . . . . . . . . . . . . . . . . . . . . . . . . . . . . Overflow Damage 2916 | . . . . . 91 66 . 33 . 664 194 76 . . 209 . 26 114 . 864 105 63 . 210 . . 43 . 158 . Projectiles 22 | . . . . . . . . . . 22 . . . . . . . . . . . . . . . . . . . . Explosions 737 | . . . . . 91 . . 33 . 35 69 15 . . 65 . 26 114 . 124 38 63 . . . . 43 . 21 . Melee 2157 | . . . . . . 66 . . . 607 125 61 . . 144 . . . . 740 67 . . 210 . . . . 137 . Knockbacks 3 | . . . . . . . . . . 1 2 . . . . . . . . . . . . . . . . . . . Impact 3 | . . . . . . . . . . 1 2 . . . . . . . . . . . . . . . . . . . Kinetic . | . . . . . . . . . . . . . . . . . . . . . . . . . . . . . . . Secondary . | . . . . . . . . . . . . . . . . . . . . . . . . . . . . . . . Self-Inflicted Damage 729 | . . 30 83 . 79 . . 56 . 36 16 57 . . 292 . . 13 . 67 . . . . . . . . . . Shots 16 | . . 1 2 . 1 . . 2 . 2 1 1 . . 3 . . 1 . 2 . . . . . . . . . . Rammed . | . . . . . . . . . . . . . . . . . . . . . . . . . . . . . . . Targets Rammed . | . . . . . . . . . . . . . . . . . . . . . . . . . . . . . . . Kicked . | . . . . . . . . . . . . . . . . . . . . . . . . . . . . . . . Crushed . | . . . . . . . . . . . . . . . . . . . . . . . . . . . . . . . Highest Temperature 411 | 120 259 239 109 63 245 336 216 280 . 128 327 222 411 26 199 36 45 146 9 231 160 260 198 . 186 51 198 . 10 45 Average Temperature 82 | 72 102 84 41 27 82 126 92 90 . 64 123 66 148 6 66 8 13 39 3 47 25 99 109 . 87 30 87 . 6 15 Received Heat Transfer 3371 | . 210 33 84 21 108 192 30 135 . . 324 384 90 27 492 99 102 174 18 168 156 99 257 . . . 132 . 27 9 Effects 3 | . . . . . . . . . . . 2 . 1 . . . . . . . . . . . . . . . . . Shutdowns 1 | . . . . . . . . . . . . . 1 . . . . . . . . . . . . . . . . . Interference 2 | . . . . . . . . . . . 2 . . . . . . . . . . . . . . . . . . . Siege Activations . | . . . . . . . . . . . . . . . . . . . . . . . . . . . . . . . Robots Corrupted 6 | . . . . . . . . . . . 1 2 . . 1 . 1 . . . . . . . . . . . . 1 Combat Hostiles 5 | . . . . . . . . . . . 1 2 . . . . 1 . . . . . . . . . . . . 1 Parts Fried 36 | . . . . . 1 . 1 . . 8 7 4 1 . 3 . 7 . . 3 . . . . . . . . . 1 Impact Corruptions 38 | . . . . . . . . . . 34 4 . . . . . . . . . . . . . . . . . . . Robots Melted . | . . . . . . . . . . . . . . . . . . . . . . . . . . . . . . . Combat Hostiles . | . . . . . . . . . . . . . . . . . . . . . . . . . . . . . . . Parts Melted 9 | . 1 . 1 1 . . 2 . . . . . 2 . . . . 1 1 . . . . . . . . . . . Heat Transferred 3828 | 111 518 544 274 . 224 407 550 400 . . 350 200 . . 100 . . . . 50 100 . . . . . . . . . Parts Sabotaged . | . . . . . . . . . . . . . . . . . . . . . . . . . . . . . . . Parts Stolen . | . . . . . . . . . . . . . . . . . . . . . . . . . . . . . . . Parts Stripped . | . . . . . . . . . . . . . . . . . . . . . . . . . . . . . . . Power Chain Reactions 21 | . 1 1 2 . 1 . 2 2 . . 2 5 . . 2 . 1 . . 1 . . . . . . . . . 1 Missiles Intercepted . | . . . . . . . . . . . . . . . . . . . . . . . . . . . . . . . Alert | -11 -10 -10 -9 -9 -8 -7 -7 -7 -7 -6 -6 -6 -6 -6 -6 -5 -5 -5 -5 -4 -4 -4 -4 -4 -3 -3 -3 -3 -2 -1 ------- Run | Scr Mat Min Mat Min Mat Fac Low Low Dat Pro Fac Ext Cet Arc Hub Fac Upp Upp War Pro Fac Upp Upp Zhi Pro Res Arm Lab Res Acc Peak Influence 1775 | 5 183 148 472 414 530 362 . . . . 442 535 668 359 1644 1775 . . . . 1403 . . . . 126 1560 . 769 764 Average Influence 504 | 2 78 94 303 361 350 170 . . . . 226 209 446 308 331 1322 . . . . 992 . . . . 75 916 . 503 527 Maximum Alert Level 5 | . . . 2 2 2 1 . . . . 2 2 2 1 5 5 . . . . 4 . . . . . 4 . 3 3 Low Security (%) 28 | 100 100 100 21 1 12 61 . . . . 43 63 . . 36 . . . . . . . . . . 100 10 . 7 . Level 1 21 | . . . 46 56 39 38 . . . . 50 14 34 100 39 . . . . . . . . . . . 5 . 15 21 Level 2 28 | . . . 32 42 47 . . . . . 6 21 64 . 15 . . . . . 31 . . . . . 14 . 73 73 Level 3 7 | . . . . . . . . . . . . . . . 3 33 . . . . 15 . . . . . 25 . 3 4 Level 4 11 | . . . . . . . . . . . . . . . 3 25 . . . . 51 . . . . . 44 . . . Level 5 2 | . . . . . . . . . . . . . . . . 36 . . . . . . . . . . . . . . High Security . | . . . . . . . . . . . . . . . . 3 . . . . . . . . . . . . . . Max Security . | . . . . . . . . . . . . . . . . . . . . . . . . . . . . . . . Squads Dispatched 51 | . 1 . 5 . 1 5 . . . 1 2 6 1 . 5 2 . 1 . 1 7 . . . . 1 5 . 6 1 Investigation 17 | . 1 . 2 . . 4 . . . . . 2 1 . 2 . . . . . 2 . . . . . 1 . 1 1 Extermination 4 | . . . . . . . . . . . . . . . . 1 . . . . 1 . . . . . 2 . . . Reinforcement 22 | . . . 3 . 1 1 . . . . 2 4 . . 2 . . . . . 4 . . . . . . . 5 . Assault 7 | . . . . . . . . . . 1 . . . . 1 1 . 1 . 1 . . . . . . 2 . . . Garrison 1 | . . . . . . . . . . . . . . . . . . . . . . . . . . 1 . . . . Intercept . | . . . . . . . . . . . . . . . . . . . . . . . . . . . . . . . Construction Impeded 5 | . . . . . . . . . . . 1 2 . . . . . . . . 2 . . . . . . . . . Haulers Reinforced 5 | . . . . . . . . . . . . . . . 2 . . . . . 2 . . . . . . . 1 . Stealth | -11 -10 -10 -9 -9 -8 -7 -7 -7 -7 -6 -6 -6 -6 -6 -6 -5 -5 -5 -5 -4 -4 -4 -4 -4 -3 -3 -3 -3 -2 -1 --------- Run | Scr Mat Min Mat Min Mat Fac Low Low Dat Pro Fac Ext Cet Arc Hub Fac Upp Upp War Pro Fac Upp Upp Zhi Pro Res Arm Lab Res Acc Distress Signals 29 | . . . 1 . . . . . . . . 1 1 . 4 . . . . . 3 . . . . 1 4 . 10 4 Communications Jammed . | . . . . . . . . . . . . . . . . . . . . . . . . . . . . . . . Distress Signals . | . . . . . . . . . . . . . . . . . . . . . . . . . . . . . . . Times Spotted 572 | . 8 2 16 9 9 18 8 15 . 15 18 54 19 4 49 16 29 28 44 40 30 17 16 . 2 3 48 . 33 22 Peak Tracking Total 20 | . 3 2 6 4 2 9 9 9 . 9 8 6 5 1 20 5 9 9 11 8 6 5 5 . 2 2 6 . 13 7 Tactical Retreats 48 | . . . 1 . 2 4 . . . 1 1 5 . . 8 3 5 6 . 1 1 . 1 . . . 1 . 4 4 Traps | -11 -10 -10 -9 -9 -8 -7 -7 -7 -7 -6 -6 -6 -6 -6 -6 -5 -5 -5 -5 -4 -4 -4 -4 -4 -3 -3 -3 -3 -2 -1 ------- Run | Scr Mat Min Mat Min Mat Fac Low Low Dat Pro Fac Ext Cet Arc Hub Fac Upp Upp War Pro Fac Upp Upp Zhi Pro Res Arm Lab Res Acc Traps Triggered 10 | . 1 . . . . 1 . . . . 2 4 . . . . . . . . 2 . . . . . . . . . Indirectly 1 | . . . . . . . . . . . 1 . . . . . . . . . . . . . . . . . . . Trap Hack Attempts . | . . . . . . . . . . . . . . . . . . . . . . . . . . . . . . . Triggered . | . . . . . . . . . . . . . . . . . . . . . . . . . . . . . . . Disarmed . | . . . . . . . . . . . . . . . . . . . . . . . . . . . . . . . Reprogrammed 10 | . . . . . . . . . . . . . . . . . . . . . . . . . . . 4 . 6 . Reused 1 | . . . . . . . . . . . . . . . . . . . . . . . . . . . 1 . . . Traps Extracted . | . . . . . . . . . . . . . . . . . . . . . . . . . . . . . . . Installed . | . . . . . . . . . . . . . . . . . . . . . . . . . . . . . . . Triggered 10 | . . . . 1 . . . . . . . . . . . . . . 7 . . 1 . . . . 1 . . . Machines | -11 -10 -10 -9 -9 -8 -7 -7 -7 -7 -6 -6 -6 -6 -6 -6 -5 -5 -5 -5 -4 -4 -4 -4 -4 -3 -3 -3 -3 -2 -1 ---------- Run | Scr Mat Min Mat Min Mat Fac Low Low Dat Pro Fac Ext Cet Arc Hub Fac Upp Upp War Pro Fac Upp Upp Zhi Pro Res Arm Lab Res Acc Machines Disabled 119 | . . . 1 . 2 . 2 2 . . 1 5 3 2 46 9 . . 2 1 18 2 1 . . . 13 1 3 5 Max in Single Turn 19 | . . . 1 . 2 . 2 1 . . 1 1 1 1 19 3 . . 1 1 6 1 1 . . . 1 1 1 1 Garrison Access 7 | . . . . . . 1 . . . . 2 . . . 1 1 . . . . . . . . . . . . 1 1 Network Hub 3 | . . . . . . . . . . . . . . . 3 . . . . . . . . . . . . . . . Energy Cycler 2 | . . . . . . . . . . . . . . . . . . . . . . . . . . . . . . 2 Machines Sabotaged . | . . . . . . . . . . . . . . . . . . . . . . . . . . . . . . . Garrisons Compromised . | . . . . . . . . . . . . . . . . . . . . . . . . . . . . . . . Overloaded Fab Kills 4 | . . . . . . . . . . . . . . . . . . . . . . . . . . . 4 . . . Fab Network Shutdowns 1 | . . . . . . . . . . . . . . . . 1 . . . . . . . . . . . . . . Hacking | -11 -10 -10 -9 -9 -8 -7 -7 -7 -7 -6 -6 -6 -6 -6 -6 -5 -5 -5 -5 -4 -4 -4 -4 -4 -3 -3 -3 -3 -2 -1 --------- Run | Scr Mat Min Mat Min Mat Fac Low Low Dat Pro Fac Ext Cet Arc Hub Fac Upp Upp War Pro Fac Upp Upp Zhi Pro Res Arm Lab Res Acc Machines Accessed 117 | . 2 . 2 . 6 8 . 2 4 . 7 12 3 1 10 8 . . 5 1 11 2 1 5 1 1 12 2 5 6 Terminals 68 | . 2 . 1 . 4 3 . 1 . . 4 11 3 . 9 3 . . . . 7 1 1 . 1 1 9 . 4 3 Fabricators 10 | . . . . . . 2 . . . . . . . . . 3 . . . . 2 . . . . . 2 . . 1 Repair Stations 1 | . . . . . . . . . . . 1 . . . . . . . . . . . . . . . . . . . Recycling Units 9 | . . . 1 . 1 2 . . . . . 1 . . . 1 . . . . 1 . . . . . 1 . . 1 Scanalyzers 1 | . . . . . 1 . . . . . . . . . . . . . . . . . . . . . . . . . Garrison Access 8 | . . . . . . 1 . . . . 2 . . . 1 1 . . . . 1 . . . . . . . 1 1 Total Hacks 500 | . 6 . 7 . 19 20 . 6 25 . 13 40 8 1 38 33 . . 12 1 80 6 4 18 1 9 89 2 35 27 Successful 263 | . 1 . 7 . 12 11 . 6 25 . 5 19 4 1 13 16 . . 12 1 26 6 4 18 1 1 32 2 24 16 Failed 235 | . 5 . . . 7 9 . . . . 8 20 3 . 25 17 . . . . 54 . . . . 8 57 . 11 11 Catastrophic 65 | . 3 . . . 1 6 . . . . 3 5 . . 8 5 . . . . 9 . . . . 4 19 . 1 1 Database Lockouts 2 | . . . . . . . . . . . . 1 1 . . . . . . . . . . . . . . . . . Manual 268 | . 5 . 6 . 12 11 . 1 . . 6 34 6 . 28 15 . . 1 . 47 . . . . . 56 . 30 10 Terminals 360 | . 6 . 5 . 15 11 . 5 . . 8 38 8 . 35 19 . . . . 62 5 4 . 1 9 76 . 34 19 Fabricators 25 | . . . . . . 3 . . . . . . . . . 9 . . . . 5 . . . . . 6 . . 2 Repair Stations 3 | . . . . . . . . . . . 3 . . . . . . . . . . . . . . . . . . . Recycling Units 31 | . . . 2 . 1 4 . . . . . 2 . . . 2 . . . . 9 . . . . . 7 . . 4 Scanalyzers 3 | . . . . . 3 . . . . . . . . . . . . . . . . . . . . . . . . . Garrison Access 17 | . . . . . . 2 . . . . 2 . . . 3 3 . . . . 4 . . . . . . . 1 2 Terminal Hacks 165 | . 1 . 1 . 4 4 . 6 25 . 1 12 3 1 8 2 . . 12 1 16 6 4 18 1 1 15 2 11 10 Record 41 | . . . . . . . . 4 11 . . . 1 1 . . . . 4 1 . 5 4 6 1 . 1 2 . . Part Schematic 9 | . . . . . . . . . 5 . . . . . . . . . . . . . . 4 . . . . . . Robot Schematic 6 | . . . . . . . . . 6 . . . . . . . . . . . . . . . . . . . . . Robot Analysis 9 | . . . . . 1 . . . . . . . . . . . . . . . 2 . . 4 . . . . 1 1 Prototype ID Bank 24 | . . . . . . 1 . 1 3 . . 3 1 . . . . . 7 . 1 . . 4 . . 2 . 1 . Open Door 7 | . . . . . . . . 1 . . . . 1 . . . . . 1 . . 1 . . . . 2 . . 1 Level Access Points 2 | . . . . . . . . . . . . . . . . . . . . . . . . . . . . . 1 1 Branch Access Points 8 | . . . 1 . 2 1 . . . . . . . . 1 . . . . . 1 . . . . 1 . . 1 . Terminal Index 6 | . . . . . 1 . . . . . . 1 . . . 1 . . . . 1 . . . . . . . 1 1 Scanalyzer Index 1 | . . . . . . . . . . . . . . . . . . . . . 1 . . . . . . . . . Garrison Index 1 | . . . . . . . . . . . . . . . . . . . . . . . . . . . . . . 1 Alert Level 15 | . . . . . . . . . . . 1 1 . . 1 1 . . . . 3 . . . . . 5 . 1 2 Unreport Threat 16 | . . . . . . 2 . . . . . 4 . . 2 . . . . . 4 . . . . . 2 . . 2 Locate Traps 10 | . . . . . . . . . . . . 2 . . 1 . . . . . 2 . . . . . 2 . 2 1 Reprogram Traps 2 | . . . . . . . . . . . . . . . . . . . . . . . . . . . 1 . 1 . Recall Investigation 1 | . . . . . . . . . . . . . . . 1 . . . . . . . . . . . . . . . Recall Reinforcements 1 | . . . . . . . . . . . . . . . 1 . . . . . . . . . . . . . . . Registered Components 1 | . . . . . . . . . . . . 1 . . . . . . . . . . . . . . . . . . Registered Prototypes 1 | . . . . . . . . . . . . . . . . . . . . . . . . . . . . . 1 . Zone Layout 4 | . 1 . . . . . . . . . . . . . 1 . . . . . 1 . . . . . . . 1 . Fabricator Hacks 12 | . . . . . . . . . . . . . . . . 6 . . . . 2 . . . . . 2 . . 2 Load Schematic 6 | . . . . . . . . . . . . . . . . 3 . . . . 1 . . . . . 1 . . 1 Build 6 | . . . . . . . . . . . . . . . . 3 . . . . 1 . . . . . 1 . . 1 Repair Station Hacks 1 | . . . . . . . . . . . 1 . . . . . . . . . . . . . . . . . . . Scan Component 1 | . . . . . . . . . . . 1 . . . . . . . . . . . . . . . . . . . Recycling Unit Hacks 8 | . . . 1 . 1 1 . . . . . 1 . . . 1 . . . . 1 . . . . . 1 . . 1 Report Inventory 8 | . . . 1 . 1 1 . . . . . 1 . . . 1 . . . . 1 . . . . . 1 . . 1 Scanalyzer 2 | . . . . . 2 . . . . . . . . . . . . . . . . . . . . . . . . . Insert Component 1 | . . . . . 1 . . . . . . . . . . . . . . . . . . . . . . . . . Analyze 1 | . . . . . 1 . . . . . . . . . . . . . . . . . . . . . . . . . Garrison Access Hacks 6 | . . . . . . 1 . . . . 2 . . . . 1 . . . . . . . . . . . . 1 1 Seal Access 6 | . . . . . . 1 . . . . 2 . . . . 1 . . . . . . . . . . . . 1 1 Unauthorized Hacks 208 | . 2 . 10 . 11 11 . . . . 3 19 2 . 18 21 . . . . 32 . . . . . 44 . 29 6 Terminals 55 | . . . 4 . 5 3 . . . . . 5 1 . 5 3 . . . . 4 . . . . . 12 . 12 1 Track 4 | . . . 1 . . . . . . . . . . . . . . . . . . . . . . . 1 . 2 . Assimilate 4 | . . . 1 . . . . . . . . . . . . . . . . . 1 . . . . . 1 . 1 . Botnet 25 | . . . 1 . 3 1 . . . . . 4 . . 3 2 . . . . 3 . . . . . 5 . 2 1 Detonate 7 | . . . . . . . . . . . . . . . 1 . . . . . . . . . . . 2 . 4 . Disrupt 8 | . . . . . 1 1 . . . . . 1 1 . 1 . . . . . . . . . . . 1 . 2 . Operators 7 | . . . 1 . 1 1 . . . . . . . . . 1 . . . . . . . . . . 2 . 1 . Fabricators 6 | . . . . . . 1 . . . . . . . . . 2 . . . . 2 . . . . . 1 . . . Prioritize 1 | . . . . . . . . . . . . . . . . . . . . . 1 . . . . . . . . . Siphon 3 | . . . . . . . . . . . . . . . . 2 . . . . 1 . . . . . . . . . Overload 2 | . . . . . . 1 . . . . . . . . . . . . . . . . . . . . 1 . . . Repair Stations 1 | . . . . . . . . . . . 1 . . . . . . . . . . . . . . . . . . . Mechanics 1 | . . . . . . . . . . . 1 . . . . . . . . . . . . . . . . . . . Recycling Units 7 | . . . 1 . . 1 . . . . . 1 . . . 1 . . . . 1 . . . . . 1 . . 1 Mask 5 | . . . . . . . . . . . . 1 . . . 1 . . . . 1 . . . . . 1 . . 1 Tunnel 2 | . . . 1 . . 1 . . . . . . . . . . . . . . . . . . . . . . . . Scanalyzers . | . . . . . . . . . . . . . . . . . . . . . . . . . . . . . . . Garrison Access . | . . . . . . . . . . . . . . . . . . . . . . . . . . . . . . . Data Cores Recovered 2 | . 1 . . . 1 . . . . . . . . . . . . . . . . . . . . . . . . . Used 2 | . 1 . . . 1 . . . . . . . . . . . . . . . . . . . . . . . . . Hacking Detections 76 | . 2 . 1 . 6 6 . 1 . . 4 11 1 . 10 6 . . . . 10 . . . . 1 9 . 4 4 Full Trace Events 12 | . 1 . 1 . 1 2 . . . . . 1 . . 2 . . . . . 2 . . . . . . . 1 1 Feedback Events 2 | . . . 1 . . . . . . . . . . . . . . . . . . . . . . . . . . 1 Corruption 1 | . . . 1 . . . . . . . . . . . . . . . . . . . . . . . . . . . Hackware Fried 1 | . . . . . . . . . . . . . . . . . . . . . . . . . . . . . . 1 Feedback Blocked . | . . . . . . . . . . . . . . . . . . . . . . . . . . . . . . . Robot Schematics Acquired 6 | . . . . . . . . . 6 . . . . . . . . . . . . . . . . . . . . . Robots Built 7 | . . . . . . . . . . . . . . . . . . . . . . . . . . . 3 . . 4 Matter 603 | . . . . . . . . . . . . . . . . . . . . . . . . . . . 351 . . 252 Time 129 | . . . . . . . . . . . . . . . . . . . . . . . . . . . 62 . . 67 Total Robot Build Rating 37 | . . . . . . . . . . . . . . . . . . . . . . . . . . . 21 . . 16 Part Schematics Acquired 10 | . . . . . 1 . . . 5 . . . . . . . . . . . . . . 4 . . . . . . Parts Built 3 | . . . . . . . . . . . . . . . . 2 . . . . 1 . . . . . . . . . Matter 888 | . . . . . . . . . . . . . . . . 603 . . . . 285 . . . . . . . . . Time 397 | . . . . . . . . . . . . . . . . 245 . . . . 152 . . . . . . . . . Total Part Build Rating 16 | . . . . . . . . . . . . . . . . 11 . . . . 5 . . . . . . . . . Parts Repaired . | . . . . . . . . . . . . . . . . . . . . . . . . . . . . . . . Time . | . . . . . . . . . . . . . . . . . . . . . . . . . . . . . . . Parts Recycled . | . . . . . . . . . . . . . . . . . . . . . . . . . . . . . . . Recycled Matter . | . . . . . . . . . . . . . . . . . . . . . . . . . . . . . . . Retrieved Matter . | . . . . . . . . . . . . . . . . . . . . . . . . . . . . . . . Retrieved Components . | . . . . . . . . . . . . . . . . . . . . . . . . . . . . . . . Parts Scanalyzed 1 | . . . . . 1 . . . . . . . . . . . . . . . . . . . . . . . . . Part Schematics Acquired 1 | . . . . . 1 . . . . . . . . . . . . . . . . . . . . . . . . . Parts Damaged . | . . . . . . . . . . . . . . . . . . . . . . . . . . . . . . . Bothacking | -11 -10 -10 -9 -9 -8 -7 -7 -7 -7 -6 -6 -6 -6 -6 -6 -5 -5 -5 -5 -4 -4 -4 -4 -4 -3 -3 -3 -3 -2 -1 ------------ Run | Scr Mat Min Mat Min Mat Fac Low Low Dat Pro Fac Ext Cet Arc Hub Fac Upp Upp War Pro Fac Upp Upp Zhi Pro Res Arm Lab Res Acc Used RIF Installer . | . . . . . . . . . . . . . . . . . . . . . . . . . . . . . . . Robots Hacked . | . . . . . . . . . . . . . . . . . . . . . . . . . . . . . . . Non-combat . | . . . . . . . . . . . . . . . . . . . . . . . . . . . . . . . Combat . | . . . . . . . . . . . . . . . . . . . . . . . . . . . . . . . Robot Hacks Applied . | . . . . . . . . . . . . . . . . . . . . . . . . . . . . . . . Relay Couplers Released 1 | . . . . . . . . . . . . . . . 1 . . . . . . . . . . . . . . . Machine Destruction 1 | . . . . . . . . . . . . . . . 1 . . . . . . . . . . . . . . . Robots Rewired 38 | . . . . . . 1 2 . . 2 . 14 . . . . 2 2 . 1 . . . . . . 14 . . . Allies Hacked 1 | . . . . . . . . . . . . . . . . . . . . . 1 . . . . . . . . . Hacks Repelled 2 | . . . . . . . . . . . . . . . . . . . . 1 1 . . . . . . . . . Allies | -11 -10 -10 -9 -9 -8 -7 -7 -7 -7 -6 -6 -6 -6 -6 -6 -5 -5 -5 -5 -4 -4 -4 -4 -4 -3 -3 -3 -3 -2 -1 -------- Run | Scr Mat Min Mat Min Mat Fac Low Low Dat Pro Fac Ext Cet Arc Hub Fac Upp Upp War Pro Fac Upp Upp Zhi Pro Res Arm Lab Res Acc Total Allies 57 | . . 3 . . . 1 2 . . 3 . 21 . . . . 2 2 . 1 1 . . . . . 17 . . 4 Largest Group 14 | . . 3 3 2 1 1 2 2 . 3 2 14 13 1 . . 2 2 2 2 2 . . . . . 10 . . 4 Highest-Rated Group 526 | . . 40 40 24 8 30 60 60 . 144 50 526 370 23 . . 59 78 78 78 74 . . . . . 490 . . 48 Highest-Rated Ally 156 | . . 16 16 16 8 30 30 30 . 94 30 156 37 23 . . 30 49 49 49 48 . . . . . 60 . . 12 Total Orders 44 | . . . . . . . 1 3 . . . 2 4 . . 3 1 4 2 1 6 . 3 . . . 10 . 3 1 STAY 1 | . . . . . . . . . . . . . . . . 1 . . . . . . . . . . . . . . GOTO 23 | . . . . . . . 1 2 . . . 1 1 . . 1 1 3 1 1 4 . 3 . . . 2 . 2 . ROAM 6 | . . . . . . . . . . . . . . . . . . . . . . . . . . . 6 . . . FOLLOW 9 | . . . . . . . . 1 . . . . 2 . . 1 . 1 1 . 2 . . . . . . . 1 . GUARD 2 | . . . . . . . . . . . . . . . . . . . . . . . . . . . 2 . . . AID 2 | . . . . . . . . . . . . 1 1 . . . . . . . . . . . . . . . . . EXPLORE 1 | . . . . . . . . . . . . . . . . . . . . . . . . . . . . . . 1 Ally Attacks 382 | . . . 22 23 10 3 . 5 . 17 . 89 68 . . . 10 4 . 12 . . . . . . 107 . . 12 Total Damage 9297 | . . . 243 247 110 69 . 145 . 582 . 2071 1081 . . . 156 37 . 285 . . . . . . 4148 . . 123 Kills 60 | . . . 4 5 2 . . 3 . 6 . 11 8 . . . . . . 2 . . . . . . 18 . . 1 Allies Corrupted 4 | . . . . . . . . . . . 1 1 . . . . . . . . . . . . . . 1 . . 1 Allies Melted . | . . . . . . . . . . . . . . . . . . . . . . . . . . . . . . . Intel | -11 -10 -10 -9 -9 -8 -7 -7 -7 -7 -6 -6 -6 -6 -6 -6 -5 -5 -5 -5 -4 -4 -4 -4 -4 -3 -3 -3 -3 -2 -1 ------- Run | Scr Mat Min Mat Min Mat Fac Low Low Dat Pro Fac Ext Cet Arc Hub Fac Upp Upp War Pro Fac Upp Upp Zhi Pro Res Arm Lab Res Acc Robot Analysis Total 9 | . . . . . 1 . . . . . . . . . . . . . . . 2 . . 4 . . . . 1 1 Derelict Logs Recovered 17 | . . 1 . 1 . . 2 3 . 2 . . . . . . 1 2 . 1 . 2 2 . . . . . . . Drone Launches 7 | . . . . . . . . . . . . . . . . 2 . . . . . . 3 . . . . . 2 . Drone Recoveries . | . . . . . . . . . . . . . . . . . . . . . . . . . . . . . . . Exploration | -11 -10 -10 -9 -9 -8 -7 -7 -7 -7 -6 -6 -6 -6 -6 -6 -5 -5 -5 -5 -4 -4 -4 -4 -4 -3 -3 -3 -3 -2 -1 ------------- Run | Scr Mat Min Mat Min Mat Fac Low Low Dat Pro Fac Ext Cet Arc Hub Fac Upp Upp War Pro Fac Upp Upp Zhi Pro Res Arm Lab Res Acc Turns Passed 14475 | 52 245 338 200 304 308 549 606 557 46 625 469 1064 539 89 558 548 819 740 730 627 746 455 651 137 178 28 880 77 749 561 Spaces Moved 16673 | 26 144 407 220 386 357 662 623 598 88 678 445 729 468 61 493 631 966 975 874 822 901 699 959 191 381 46 982 157 974 730 Core . | . . . . . . . . . . . . . . . . . . . . . . . . . . . . . . . Treads . | . . . . . . . . . . . . . . . . . . . . . . . . . . . . . . . Legs 1 | 1 . . . . . . . . . . . . . . . . . . . . . . . . . . . . . . Wheels 145 | 25 120 . . . . . . . . . . . . . . . . . . . . . . . . . . . . . Hover 16527 | . 24 407 220 386 357 662 623 598 88 678 445 729 468 61 493 631 966 975 874 822 901 699 959 191 381 46 982 157 974 730 Flight . | . . . . . . . . . . . . . . . . . . . . . . . . . . . . . . . Fastest Speed 38 | 90 65 65 56 56 52 52 52 52 52 52 52 52 56 56 45 45 45 45 38 45 45 45 45 38 38 38 38 38 38 38 Average Speed 49 | 92 85 65 58 56 52 52 64 76 52 61 56 52 56 56 54 45 45 45 45 45 45 45 45 41 38 38 38 38 38 38 Slowest Speed 170 | 120 90 65 65 56 56 52 112 112 52 112 112 112 56 56 170 45 45 45 106 45 45 45 45 92 38 38 38 38 38 38 Overloaded Moves . | . . . . . . . . . . . . . . . . . . . . . . . . . . . . . . . Propulsion Burnouts . | . . . . . . . . . . . . . . . . . . . . . . . . . . . . . . . Robots Hopped . | . . . . . . . . . . . . . . . . . . . . . . . . . . . . . . . Cave-ins Triggered 2 | . . . . . . . . . . . . . . . . . . . 1 . . 1 . . . . . . . . Exploration Rate (%) 60 | 2 32 73 29 87 44 22 78 71 70 77 16 87 80 69 73 35 95 94 86 83 38 87 94 62 59 2 78 93 29 32 Regions Visited 30 Branch Regions 20 Pre-discovered Areas 8 | . . 1 1 . . 1 1 . 1 . . . . . . . . . . . . . . 3 . . . . . . Known Exits Taken 27 | . . . 1 1 1 1 1 1 1 1 1 1 1 1 1 1 1 1 1 1 1 1 1 1 1 1 1 1 1 . Unknown Exits Taken 3 | 1 1 1 . . . . . . . . . . . . . . . . . . . . . . . . . . . . Scrap Searched 27 | . . 1 . 2 . . 3 1 . 4 . . . . . . 2 2 . 1 . 5 3 . 3 . . . . . Spaces Dug 180 | . . . . 5 9 10 . . . 3 7 1 1 . 32 9 3 1 . 1 14 4 . . . 1 13 . 54 12 Terrain Destroyed 1921 | . 4 . 14 5 33 11 2 48 . 5 23 36 16 17 535 65 95 124 42 201 279 79 65 . . 1 94 . 55 72 Melee 147 | . . . . 5 9 10 . . . 3 7 1 1 . 32 9 3 1 . 1 14 4 . . . 1 13 . 21 12 Projectile 621 | . . . . . . 1 1 1 . 2 6 15 15 17 23 56 80 70 42 88 89 44 65 . . . 3 . 1 2 AOE 1153 | . 4 . 14 . 24 . 1 47 . . 10 20 . . 480 . 12 53 . 112 176 31 . . . . 78 . 33 58 Actions | -11 -10 -10 -9 -9 -8 -7 -7 -7 -7 -6 -6 -6 -6 -6 -6 -5 -5 -5 -5 -4 -4 -4 -4 -4 -3 -3 -3 -3 -2 -1 --------- Run | Scr Mat Min Mat Min Mat Fac Low Low Dat Pro Fac Ext Cet Arc Hub Fac Upp Upp War Pro Fac Upp Upp Zhi Pro Res Arm Lab Res Acc Total 20649 | 40 222 444 259 436 412 799 792 660 87 830 555 1234 665 87 638 767 1255 1198 1158 974 1082 765 1070 236 404 51 1290 168 1201 870 Wait 1117 | . 28 10 . 19 5 43 85 8 . 50 2 143 76 1 26 30 156 85 138 15 32 . 9 . 12 . 27 . 77 40 Move 16640 | 25 143 406 219 385 356 661 622 597 87 677 444 728 467 60 492 630 965 974 872 821 900 697 958 190 380 45 981 156 973 729 Hop . | . . . . . . . . . . . . . . . . . . . . . . . . . . . . . . . Pick Up 49 | 1 . . 1 3 . 2 . . . 1 2 6 4 1 1 2 1 7 8 2 . 1 2 1 . 1 1 1 . . Fast Attach 99 | 5 3 1 5 . 3 6 2 2 . 1 4 10 5 . 3 3 . . 10 . 3 3 . 6 . . 10 5 8 1 Attach 5 | . . . . 1 . . . . . . . 1 . . . . . 2 . . . . . . . . . . . 1 Detach 18 | 2 1 . 1 . 1 . . 1 . . 2 2 . . 1 1 . . 1 . . 2 . . . . . . 2 1 Swap 153 | . 3 1 1 . 4 12 4 7 . 7 14 9 11 . 9 15 9 8 5 9 6 2 . 1 1 . 8 . 1 6 Drop 130 | 1 5 . 3 2 2 10 5 2 . 2 6 14 9 1 3 2 3 8 15 3 3 3 2 4 . 1 11 3 6 1 Fire 863 | 6 24 19 17 15 22 21 17 19 . 10 25 77 31 13 41 42 40 35 24 46 62 32 48 . 4 2 75 . 45 51 Melee 266 | . . . . 5 12 14 . 1 . 17 25 9 7 . 36 17 3 1 . 7 16 4 2 9 . 1 24 3 33 20 Ram . | . . . . . . . . . . . . . . . . . . . . . . . . . . . . . . . Kick . | . . . . . . . . . . . . . . . . . . . . . . . . . . . . . . . Crush . | . . . . . . . . . . . . . . . . . . . . . . . . . . . . . . . Escape Stasis 79 | . . . . . . . . . . . 13 48 . . . . . . 1 . 16 1 . . . . . . . . Rewire 383 | . . . . . . 15 41 . . 34 . 123 . . . . 49 28 1 9 . . . . . . 83 . . . Trap . | . . . . . . . . . . . . . . . . . . . . . . . . . . . . . . . Miscellaneous 847 | . 15 7 12 6 7 15 16 23 . 31 18 64 55 11 26 25 29 50 83 62 44 20 49 25 7 1 70 . 56 20 Route ------- -11/Scrapyard -10/Materials (discovered 2 exits: *Mat / [*Min]) -10/Mines (discovered 2 exits: *Mat x2) -9/Materials (discovered 3 exits: *Min / *Sto x2) -9/Mines (discovered 2 exits: *Mat x2) -8/Materials -7/Factory (discovered 2 exits: *Low x2) -7/Lower Caves -7/Lower Caves (discovered 2 exits: *Fac / *Dat) -7/Data Miner -6/Proximity Caves -6/Factory -6/Extension (discovered 3 exits: *Fac x2 / *Cet) -6/Cetus (discovered 2 exits: *Fac / *Arc) -6/Archives (discovered 3 exits: Fac / *Hub x2) -6/Hub_04(d) (discovered 4 exits: *Fac x4) -5/Factory (discovered 3 exits: Fac x2 / *Upp) -5/Upper Caves -5/Upper Caves (discovered 2 exits: *Fac / *War) -5/Warlord -4/Proximity Caves -4/Factory (discovered 5 exits: *Res x3 / *Upp x2) -4/Upper Caves -4/Upper Caves (discovered 2 exits: *Res / *Zhi) -4/Zhirov -3/Proximity Caves -3/Research (discovered 3 exits: *Arm / Qua x2) -3/Armory (discovered 3 exits: *Res x2 / *Lab) -3/Lab -2/Research (discovered 5 exits: *Acc x3 / Tes x2) -1/Access To Fleet Rendezvous History --------- Turn | Location | Event 1 | -11/Scrapyard | Upgraded with Propulsion slot (x1) 1 | -11/Scrapyard | Upgraded with Utility slot (x1) 1 | -11/Scrapyard | Upgraded with Weapon slot (x1) 1 | -11/Scrapyard | Discovered new exit (range 1) 53 | -11/Scrapyard | Entered Materials 234 | -10/Materials | Discovered new exit (range 10) 287 | -10/Materials | Discovered new exit (range 8) 298 | -10/Materials | Entered Mines 304 | -10/Mines | Discovered new exit (range 15) 349 | -10/Mines | Learned location of Recycling (-9) 380 | -10/Mines | Assisted by bots powering up and referring to "LRC-V3" 561 | -10/Mines | Discovered new exit (range 9) 588 | -10/Mines | Reached level 2 595 | -10/Mines | Build established: Scavenger-Mutant 636 | -10/Mines | Entered Materials 636 | -9/Materials | Accompanied by 3 allies 638 | -9/Materials | Reached level 3 645 | -9/Materials | Discovered new exit (range 15) 671 | -9/Materials | Identified exit to Storage 706 | -9/Materials | Reached level 4 737 | -9/Materials | Identified exit to Mines 810 | -9/Materials | Upgraded with Utility slot (x1) 836 | -9/Materials | Entered Mines 836 | -9/Mines | Accompanied by 2 allies 862 | -9/Mines | Reached level 5 901 | -9/Mines | Received a Rocket Launcher from a helpful Derelict 1047 | -9/Mines | Upgraded with Weapon slot (x1) 1067 | -9/Mines | Discovered new exit (range 6) 1074 | -9/Mines | Identified exit to Materials 1088 | -9/Mines | Learned Materials stockpile data 1112 | -9/Mines | Discovered exit to Materials (range 9) 1140 | -9/Mines | Entered Materials 1140 | -8/Materials | Accompanied by 1 ally 1142 | -8/Materials | Reached level 6 1189 | -8/Materials | Upgraded with Propulsion slot (x1) 1191 | -8/Materials | Upgraded with Power slot (x1) 1314 | -8/Materials | Reached level 7 1340 | -8/Materials | Build established: Scavenger-Scout 1429 | -8/Materials | Discovered new exit (range 15) 1436 | -8/Materials | Identified exit to Factory 1448 | -8/Materials | Entered Factory 1450 | -7/Factory | Reached level 8 1487 | -7/Factory | Upgraded with Utility slot (x1) 1527 | -7/Factory | Upgraded with Utility slot (x1) 1645 | -7/Factory | Core integrity fell below 50% 1661 | -7/Factory | Identified exit to Lower Caves 1931 | -7/Factory | Reached level 9 1997 | -7/Factory | Entered Lower Caves 2149 | -7/Lower Caves | Encountered a Warlord checkpoint 2172 | -7/Lower Caves | Learned location of Zion (-6) 2202 | -7/Lower Caves | Spotted B-75 Beast 2357 | -7/Lower Caves | Discovered new exit (range 11) 2361 | -7/Lower Caves | Identified exit to Lower Caves 2371 | -7/Lower Caves | Build established: Scout 2375 | -7/Lower Caves | Attracted the attention of an 0b10 outpost 2375 | -7/Lower Caves | Core integrity fell below 20% 2385 | -7/Lower Caves | Reached level 10 2406 | -7/Lower Caves | Destroyed 8 combat bots 2603 | -7/Lower Caves | Entered another Lower Caves area 2603 | -7/Lower Caves | Accompanied by 2 allies 2609 | -7/Lower Caves | Discovered new exit (range 9) 2611 | -7/Lower Caves | Identified exit to Data Miner 2633 | -7/Lower Caves | Upgraded with Utility slot (x2) 2636 | -7/Lower Caves | Found Prototype Device 2636 | -7/Lower Caves | Identified Heart of Steel 2752 | -7/Lower Caves | Build established: Scavenger-Skirmisher 2797 | -7/Lower Caves | Reached level 11 2896 | -7/Lower Caves | Learned Factory security intel 2916 | -7/Lower Caves | Learned Factory garrison access intel 2965 | -7/Lower Caves | Reached level 12 2992 | -7/Lower Caves | Destroyed 8 combat bots 3050 | -7/Lower Caves | Learned 8 Research zone layouts 3050 | -7/Lower Caves | Learned 6 Upper Caves zone layouts 3160 | -7/Lower Caves | Entered Data Miner 3160 | -7/Data Miner | Discovered new exit (range 6) 3170 | -7/Data Miner | Met Data Miner 3181 | -7/Data Miner | Learned location of Section 7 (-2) 3181 | -7/Data Miner | Acquired the access code to Warlord's prototype stash 3191 | -7/Data Miner | Received God Mode back door access code from Data Miner 3205 | -7/Data Miner | Identified exit to Proximity Caves 3206 | -7/Data Miner | Entered Proximity Caves 3208 | -6/Proximity Caves | Reached level 13 3372 | -6/Proximity Caves | Escorted by Enhanced Grunt 3381 | -6/Proximity Caves | Attracted the attention of an 0b10 outpost 3382 | -6/Proximity Caves | Reached level 14 3510 | -6/Proximity Caves | Identified exit to Factory 3588 | -6/Proximity Caves | Learned Factory security intel 3831 | -6/Proximity Caves | Entered Factory 3831 | -6/Factory | Accompanied by 2 allies 3833 | -6/Factory | Loaded intel: 4 garrison access locations 3833 | -6/Factory | Reached level 15 3883 | -6/Factory | Build established: Scavenger-Scout 4030 | -6/Factory | Reached level 16 4067 | -6/Factory | Destroyed 9 combat bots 4109 | -6/Factory | Discovered new exit (range 5) 4251 | -6/Factory | Core integrity fell below 50% 4298 | -6/Factory | Identified exit to Extension 4300 | -6/Factory | Entered Extension 4302 | -6/Extension | Reached level 17 4304 | -6/Extension | Heart of Steel transformed into Warbot 4311 | -6/Extension | Disrupted transfer network 4349 | -6/Extension | Rescued a captive Derelict 4365 | -6/Extension | Incoming investigation squad redirected 4441 | -6/Extension | Reached level 18 4442 | -6/Extension | Core integrity fell below 20% 4516 | -6/Extension | Rescued a captive Derelict 4517 | -6/Extension | Rescued a captive Derelict 4530 | -6/Extension | Rescued a captive Derelict 4557 | -6/Extension | Spotted B-75 Beast 4571 | -6/Extension | Spotted B-75 Beast 4610 | -6/Extension | Destroyed B-75 Beast 4670 | -6/Extension | Discovered new exit (range 19) 4754 | -6/Extension | Destroyed B-75 Beast 4854 | -6/Extension | Rescued a captive Derelict 4970 | -6/Extension | Reached level 19 5025 | -6/Extension | Rescued a captive Derelict 5123 | -6/Extension | Rescued A7 5135 | -6/Extension | Central database locked down 5159 | -6/Extension | Incoming investigation squad redirected 5164 | -6/Extension | Discovered new exit (range 13) 5172 | -6/Extension | Discovered new exit (range 6) 5175 | -6/Extension | Identified exit to Cetus 5177 | -6/Extension | Upgraded with Utility slot (x1) 5257 | -6/Extension | Destroyed A7 5260 | -6/Extension | Extracted ID and sensor layout for unrecognized location from A7's data core 5267 | -6/Extension | Found Prototype Protection 5267 | -6/Extension | Identified Med. Regenerative Plating 5280 | -6/Extension | Upgraded with Utility slot (x1) 5364 | -6/Extension | Entered Cetus 5364 | -6/Cetus | Accompanied by 13 allies 5380 | -6/Cetus | Spotted Cetus Guard 5380 | -6/Cetus | Spotted Cetus Guard 5381 | -6/Cetus | Build established: Commander-Scout 5387 | -6/Cetus | Spotted Cetus Guard 5390 | -6/Cetus | Spotted Cetus Guard 5393 | -6/Cetus | Allies destroyed Cetus Guard 5395 | -6/Cetus | Allies destroyed Cetus Guard 5397 | -6/Cetus | Allies destroyed Cetus Guard 5401 | -6/Cetus | Destroyed Cetus Guard 5520 | -6/Cetus | Found a strange terminal 5520 | -6/Cetus | Central database locked down 5568 | -6/Cetus | Reached level 20 5609 | -6/Cetus | Discovered new exit (range 15) 5642 | -6/Cetus | Spotted Cetus Guard 5642 | -6/Cetus | Spotted Cetus Guard 5643 | -6/Cetus | Spotted Cetus Guard 5647 | -6/Cetus | Destroyed Cetus Guard 5648 | -6/Cetus | Spotted Cetus Guard 5650 | -6/Cetus | Destroyed Cetus Guard 5654 | -6/Cetus | Allies destroyed Cetus Guard 5657 | -6/Cetus | Destroyed Cetus Guard 5662 | -6/Cetus | Discovered new exit (range 15) 5666 | -6/Cetus | Met Revision 17 5744 | -6/Cetus | Build established: Scavenger-Scout 5793 | -6/Cetus | Upgraded with Utility slot (x1) 5887 | -6/Cetus | Identified exit to Archives 5903 | -6/Cetus | Entered Archives 5903 | -6/Archives | Accompanied by 1 ally 5911 | -6/Archives | Discovered new exit (range 23) 5939 | -6/Archives | Discovered new exit (range 24) 5970 | -6/Archives | Unable to access archive contents 5977 | -6/Archives | Discovered new exit (range 15) 5981 | -6/Archives | Unable to access archive contents 5991 | -6/Archives | Identified exit to Hub_04(d) 5992 | -6/Archives | Entered Hub_04(d) 6064 | -6/Hub_04(d) | Discovered new exit (range 18) 6066 | -6/Hub_04(d) | Discovered new exit (range 19) 6067 | -6/Hub_04(d) | Discovered new exit (range 23) 6144 | -6/Hub_04(d) | Identified exit to Factory 6167 | -6/Hub_04(d) | Disrupted transfer network 6238 | -6/Hub_04(d) | Spotted B-75 Beast 6402 | -6/Hub_04(d) | Reached level 21 6429 | -6/Hub_04(d) | Discovered exit to Factory (range 23) 6451 | -6/Hub_04(d) | Destroyed 9 combat bots 6470 | -6/Hub_04(d) | Upgraded with Propulsion slot (x1) 6506 | -6/Hub_04(d) | Network Hub disabled 6516 | -6/Hub_04(d) | Spotted Lightning 6516 | -6/Hub_04(d) | Spotted Lightning 6516 | -6/Hub_04(d) | Spotted Lightning 6525 | -6/Hub_04(d) | Incoming assault squad redirected 6525 | -6/Hub_04(d) | Spotted Lightning 6526 | -6/Hub_04(d) | Network Hub disabled 6527 | -6/Hub_04(d) | Spotted Lightning 6529 | -6/Hub_04(d) | Spotted Lightning 6545 | -6/Hub_04(d) | Network Hub disabled 6550 | -6/Hub_04(d) | Spotted Lightning 6550 | -6/Hub_04(d) | Spotted Lightning 6550 | -6/Hub_04(d) | Spotted Lightning 6550 | -6/Hub_04(d) | Spotted Lightning 6550 | -6/Hub_04(d) | Entered Factory 6551 | -5/Factory | Identified exit to Upper Caves 6551 | -5/Factory | Core integrity fell below 50% 6610 | -5/Factory | Reached level 22 6721 | -5/Factory | Core integrity fell below 20% 6771 | -5/Factory | Discovered new exit (range 23) 6844 | -5/Factory | Fabricated Exp. Sensor Array? 6850 | -5/Factory | First assault squad dispatched 6856 | -5/Factory | Local fabrication network quarantined 6870 | -5/Factory | Incoming assault squad redirected 6943 | -5/Factory | Fabricated Plasma Sword? 6987 | -5/Factory | Discovered new exit (range 13) 7058 | -5/Factory | Upgraded with Utility slot (x1) 7078 | -5/Factory | High security lockdown imminent 7098 | -5/Factory | Entered Upper Caves 7108 | -5/Upper Caves | Encountered a Warlord checkpoint 7131 | -5/Upper Caves | Attracted the attention of an 0b10 outpost 7319 | -5/Upper Caves | Reached level 23 7421 | -5/Upper Caves | Attracted the attention of an 0b10 checkpoint 7546 | -5/Upper Caves | Learned Factory stockpile data 7755 | -5/Upper Caves | Spotted B-75 Beast 7767 | -5/Upper Caves | Destroyed B-75 Beast 7799 | -5/Upper Caves | Discovered new exit (range 15) 7805 | -5/Upper Caves | Identified exit to Upper Caves 7917 | -5/Upper Caves | Entered another Upper Caves area 7917 | -5/Upper Caves | Accompanied by 2 allies 7920 | -5/Upper Caves | Discovered new exit (range 9) 7944 | -5/Upper Caves | Learned Factory garrison access intel 7963 | -5/Upper Caves | Found Alien Artifact 7964 | -5/Upper Caves | Identified Core Expander 7964 | -5/Upper Caves | Installed Core Expander, added new Weapon slot 7976 | -5/Upper Caves | Encountered a Warlord checkpoint 8053 | -5/Upper Caves | Spotted B-75 Beast 8134 | -5/Upper Caves | Destroyed B-75 Beast 8210 | -5/Upper Caves | Destroyed 7 combat bots 8304 | -5/Upper Caves | Attracted the attention of an 0b10 outpost 8562 | -5/Upper Caves | Discovered new exit (range 7) 8567 | -5/Upper Caves | Identified exit to Warlord 8609 | -5/Upper Caves | Learned 12 Factory zone layouts 8657 | -5/Upper Caves | Entered Warlord 8657 | -5/Warlord | Accompanied by 2 allies 8672 | -5/Warlord | System corruption cleaned by Quarantine Array 8856 | -5/Warlord | Visited the Vortex Lab 8866 | -5/Warlord | Found Prototype Piercing Weapon 8868 | -5/Warlord | Found Prototype Piercing Weapon 8869 | -5/Warlord | Identified Vortex Lance (x2) 8871 | -5/Warlord | Found Vortex Lance 8877 | -5/Warlord | Warlord's base attacked by MAIN.C 8904 | -5/Warlord | Met Warlord 8913 | -5/Warlord | Opened Warlord's prototype stash 8924 | -5/Warlord | Found Prototype Reactor 8924 | -5/Warlord | Identified Vortex Chain Reactor 8932 | -5/Warlord | Found Prototype Device 8932 | -5/Warlord | Identified Exp. Phase Shifter 8934 | -5/Warlord | Upgraded with Utility slot (x1) 8938 | -5/Warlord | Found Prototype Device 8938 | -5/Warlord | Identified Exp. Focal Shield 8940 | -5/Warlord | Found Prototype Processor 8940 | -5/Warlord | Identified Spectral Analyzer 9029 | -5/Warlord | Reached level 24 9063 | -5/Warlord | Destroyed 10 combat bots 9086 | -5/Warlord | Discovered new exit (range 24) 9106 | -5/Warlord | Spotted B-75 Beast 9162 | -5/Warlord | Warlord forces counterattacked 9227 | -5/Warlord | Spotted Striker 9301 | -5/Warlord | Spotted Striker 9305 | -5/Warlord | Crushed by falling debris 9307 | -5/Warlord | Spotted Striker 9367 | -5/Warlord | Identified exit to Proximity Caves 9387 | -5/Warlord | Entered Proximity Caves 9387 | -4/Proximity Caves | Accompanied by 2 allies 9421 | -4/Proximity Caves | Learned Research interactive machine intel 9602 | -4/Proximity Caves | Reached level 25 9674 | -4/Proximity Caves | Attracted the attention of an 0b10 outpost 9711 | -4/Proximity Caves | Discovered new exit (range 16) 9945 | -4/Proximity Caves | Attracted the attention of an 0b10 checkpoint 10014 | -4/Proximity Caves | Identified exit to Factory 10014 | -4/Proximity Caves | Entered Factory 10014 | -4/Factory | Accompanied by 1 ally 10015 | -4/Factory | Identified exit to Research 10017 | -4/Factory | Loaded intel: 2 garrison access locations 10037 | -4/Factory | Reached level 26 10160 | -4/Factory | Upgraded with Utility slot (x1) 10327 | -4/Factory | Destroyed 7 combat bots 10466 | -4/Factory | Fabricated Exp. Sensor Array? 10566 | -4/Factory | Discovered exit to Research (range 7) 10592 | -4/Factory | Identified exit to Upper Caves 10616 | -4/Factory | Spotted B-86 Titan 10760 | -4/Factory | Entered Upper Caves 10810 | -4/Upper Caves | Crushed by falling debris 10830 | -4/Upper Caves | Spotted B-86 Titan 10853 | -4/Upper Caves | Destroyed B-86 Titan 10971 | -4/Upper Caves | Reached level 27 11048 | -4/Upper Caves | Identified exit to Upper Caves 11081 | -4/Upper Caves | Attracted the attention of an 0b10 base 11134 | -4/Upper Caves | Destroyed 7 combat bots 11134 | -4/Upper Caves | Learned 6 Lower Caves zone layouts 11134 | -4/Upper Caves | Learned Armory terminal intel 11140 | -4/Upper Caves | Learned Research machine intel 11215 | -4/Upper Caves | Entered another Upper Caves area 11232 | -4/Upper Caves | Discovered exit to Research (range 21) 11379 | -4/Upper Caves | Learned Research trap positions 11380 | -4/Upper Caves | Encountered a Warlord checkpoint 11412 | -4/Upper Caves | Learned Armory trap positions 11412 | -4/Upper Caves | Learned Factory stockpile data 11412 | -4/Upper Caves | Learned Armory security intel 11413 | -4/Upper Caves | Attracted the attention of an 0b10 base 11571 | -4/Upper Caves | Attracted the attention of an 0b10 checkpoint 11687 | -4/Upper Caves | Spotted B-86 Titan 11732 | -4/Upper Caves | Destroyed B-86 Titan 11760 | -4/Upper Caves | Attacked by a delusional Derelict stockpiling parts 11805 | -4/Upper Caves | Discovered new exit (range 15) 11811 | -4/Upper Caves | Identified exit to Zhirov 11866 | -4/Upper Caves | Entered Zhirov 11866 | -4/Zhirov | Discovered new exit (range 3) 11875 | -4/Zhirov | Met Zhirov 11885 | -4/Zhirov | Learned location of Quarantine (-3) 11885 | -4/Zhirov | Learned location of Testing (-2) 11885 | -4/Zhirov | Learned location of Command (-1) 11892 | -4/Zhirov | Zhirov requested help retrieving the SGEMP Prototype 11899 | -4/Zhirov | Found Alien Artifact 11899 | -4/Zhirov | Identified Integrated Reactor 11899 | -4/Zhirov | Installed Integrated Reactor, increased core energy generation (+2%) 11978 | -4/Zhirov | Found Alien Artifact 12002 | -4/Zhirov | Identified exit to Proximity Caves 12003 | -4/Zhirov | Entered Proximity Caves 12172 | -3/Proximity Caves | Discovered exit to Research (range 13) 12181 | -3/Proximity Caves | Entered Research 12182 | -3/Research | Identified exit to Quarantine 12183 | -3/Research | Reached level 28 12184 | -3/Research | Loaded intel: 70 trap records 12185 | -3/Research | Loaded intel: 104 machine locations 12186 | -3/Research | Loaded intel: 41 interactive machine locations 12191 | -3/Research | Garrison activated, responded to threat 12196 | -3/Research | Discovered new exit (range 19) 12196 | -3/Research | Identified exit to Armory 12209 | -3/Research | Entered Armory 12210 | -3/Armory | Loaded intel: 40 trap records 12212 | -3/Armory | Loaded intel: 13 terminal locations 12227 | -3/Armory | Found Prototype Launcher 12227 | -3/Armory | Identified Hellfire Missile Launcher 12299 | -3/Armory | Reached level 29 12310 | -3/Armory | Found Unknown Device 12310 | -3/Armory | Identified Antimissile System 12465 | -3/Armory | Discovered new exit (range 12) 12501 | -3/Armory | Found Enh. Force Lance 12590 | -3/Armory | Found Prototype Slashing Weapon 12590 | -3/Armory | Identified Molecular Scythe 12697 | -3/Armory | Destroyed B-86 Titan 12756 | -3/Armory | Reached level 30 12818 | -3/Armory | Fabricated G-67 Veteran? 12846 | -3/Armory | Discovered new exit (range 22) 12999 | -3/Armory | First assault squad dispatched 13027 | -3/Armory | Incoming assault squad redirected 13028 | -3/Armory | Incoming assault squad redirected 13053 | -3/Armory | Discovered new exit (range 11) 13088 | -3/Armory | Identified exit to Lab 13089 | -3/Armory | Entered Lab 13089 | -3/Lab | Discovered new exit (range 9) 13092 | -3/Lab | Identified exit to Research 13094 | -3/Lab | Hidden lab's door opened automatically 13094 | -3/Lab | Sensor layout match revealed 13094 | -3/Lab | Unable to decrypt terminal 13095 | -3/Lab | Gained access to the hidden lab's interior 13096 | -3/Lab | Unable to decrypt terminal 13096 | -3/Lab | Unable to decrypt terminal 13107 | -3/Lab | Found Alien Artifact 13107 | -3/Lab | Identified Core Regenerator 13107 | -3/Lab | Used Core Regenerator, restored core integrity (+0) 13113 | -3/Lab | Found Alien Artifact 13113 | -3/Lab | Identified Integrated Dissipator 13113 | -3/Lab | Installed Integrated Dissipator, increased core heat dissipation (+2%) 13127 | -3/Lab | Unable to decrypt terminal 13133 | -3/Lab | Found Prototype Protection 13133 | -3/Lab | Identified Exp. Powered Armor 13136 | -3/Lab | Found Prototype Hackware 13136 | -3/Lab | Identified Deep Network Scanner 13137 | -3/Lab | Upgraded with Utility slot (x1) 13160 | -3/Lab | Found Alien Artifact 13166 | -3/Lab | Entered Research 13166 | -2/Research | Warlord forces began assault on 0b10 13168 | -2/Research | Reached level 31 13178 | -2/Research | Identified exit to Access 13190 | -2/Research | Identified exit to Testing 13276 | -2/Research | Research machine network offline 13304 | -2/Research | Found Prototype Hackware 13304 | -2/Research | Identified Exp. Hacking Suite 13400 | -2/Research | Build established: Hacker-Scout 13427 | -2/Research | Spotted Striker 13428 | -2/Research | Spotted Striker 13449 | -2/Research | Destroyed Striker 13455 | -2/Research | Reached level 32 13498 | -2/Research | Met up with Warlord 13511 | -2/Research | Borebot progress halted 13512 | -2/Research | Borebot progress halted 13514 | -2/Research | Spotted Striker 13520 | -2/Research | Destroyed Executioner 13580 | -2/Research | Found Prototype Slashing Weapon 13580 | -2/Research | Identified Particle Cleaver 13584 | -2/Research | Found Prototype Processor 13584 | -2/Research | Identified Exp. Core Analyzer 13915 | -2/Research | Entered Access 13915 | -1/Access | Accompanied by 2 allies 13917 | -1/Access | Reached level 33 14017 | -1/Access | Identified exit to Surface 14176 | -1/Access | Identified Core Reset Matrix 14176 | -1/Access | Reached level 34 14176 | -1/Access | Used Core Reset Matrix 14180 | -1/Access | Deep Network Scanner fried by hacking feedback 14184 | -1/Access | Discovered exit to Surface (range 12) 14193 | -1/Access | Energy Cycler disabled 14207 | -1/Access | Fabricated S-27 Virus? 14359 | -1/Access | Spotted B-99 Colossus 14442 | -1/Access | Destroyed B-99 Colossus 14476 | *** | Heading to fleet! Last Messages --------------- 14439_ Slug penetrates B-99 Colossus. 14439_ Slug penetrates Terminal. 14442_ B-99 Colossus destroyed. 14448_ U-05 Engineer builds a Wall. 14448_ Acquired 104 matter. 14449_ U-05 Engineer lays Concrete. 14450_ Acquired 43 matter. 14450_ U-05 Engineer lays Concrete. 14453_ Acquired 36 matter. 14453_ U-05 Engineer builds a Wall. 14455_ Acquired 67 matter. 14457_ U-05 Engineer lays Concrete. 14457_ U-05 Engineer builds a Wall. 14458_ U-05 Engineer lays Concrete. 14468_ U-05 Engineer builds a Wall. 14469_ Acquired Unknown Device. 14469_ Identified Adv. Heat Sink. 14471_ U-05 Engineer lays Concrete. [Achievement: Punisher] [Achievement: Home At Last?] Map ----- +----------------------------------------------------+ | #?? #?# ### #### " ???###???????? | | ?? ??### ### #### ?""" #?##?####????? | | k ??### ### # # """ ? ??? ?? ???? | | ### ### ### #### " +? ???? ????? | | #### #### ### #### # ? ?? ?? | | ?# #### ############# # ? ? ? ? ?? | | # #### ############# ####+### ?# | | " + ####k############# """ ## ?# ? ## | | " # #### ############# """S"" ## #? ?## | | # ####[############# """""" ## ??? ## | | # ####=########################### +? ???# | | # * k%= ######################### # ??# | | # [[!![ ######################### # ??# | | # #####%=# ####################### # ??? | | # ###*#[ # ####################### # ?? #? | | # ### # u# ###################### # ?? | | # #####u ####################### # ?# | | #### ### #*=" ############################# ?# | | # ## ####" ############################### +? | | # ## ##### ####### ####################### ?# | | # ## ##### "T """" ### ? | | #### #####= "" !%[ # # # | | # #####=! "" "" """" ### ?? | | + ##### " " """" ?? | | + #####! "" " """" #? | | # ##### @" " """" ## | | # #####* " " """" ## | | # ##### """""" """" BB ###+##?#? | | # ##### """" BB # ? ? | | # ##### """" # ? ? | | # ##### ####### ##################### " | | # ##### ############################# """? | | # ##### ############################# """??? | | u+ ##### #############################?? "?? | | # ##### ############################# ? | | # ##### ############## ######### ? ? | | "### ##### ############## ######### ? ? | | ##########?#?##?? | | ############?#?## | | ###########++############## ##########?###?#? | | ###### ######### #######?#######?# | | ###### ###########+#################??? | | ###### ###### #####?#?##??#? | | ###### ###### #??###?#?##?#? | | ###### ###### #?#?##?????#?# | | ###### ###### ####????##??#? | | ###### ###### #???##?###???? | | ###### ###### #?##?#????##?? | | ###### ###### ##???##?????## | | ###### ###### ##?##??##????? | +----------------------------------------------------+ Best States ------------- Heat Dissipation 76 Coolant Potential 120 Energy Generation 80 Energy Capacity 1500 Matter Stores 300 Matter Capacity 300 Sight Range 24 Robot Scan Range 42 Terrain Scan Range 24 Terrain Scan Density 510 Power Amplification 30 Armor Coverage 400 Resistance: KI 5 Resistance: TH 5 Resistance: EX 5 Phase Shifting 20 Evasion (%) 89 Targeting Accuracy 16 Target Analysis 8 Core Analysis 15 Kinecelleration 30 Offensive Hacking 46 Defensive Hacking 14 Item Schematics ----------------- None Robot Schematics ------------------ None Fabricated ------------ Exp. Sensor Array | x1 | -5/Factory Plasma Sword | x1 | -5/Factory Exp. Sensor Array | x1 | -4/Factory G-67 Veteran | x3 | -3/Armory S-27 Virus | x4 | -1/Access Alien Tech Used ----------------- Core Expander Integrated Reactor Core Regenerator Integrated Dissipator Core Reset Matrix Achievements -------------- Giant Slayer Home At Last? Punisher Challenges ------------ None RPGLIKE | -11 -10 -10 -9 -9 -8 -7 -7 -7 -7 -6 -6 -6 -6 -6 -6 -5 -5 -5 -5 -4 -4 -4 -4 -4 -3 -3 -3 -3 -2 -1 --------- Run | Scr Mat Min Mat Min Mat Fac Low Low Dat Pro Fac Ext Cet Arc Hub Fac Upp Upp War Pro Fac Upp Upp Zhi Pro Res Arm Lab Res Acc Levels Raised 33 | . . 1 2 1 2 2 1 2 . 2 2 3 1 . 1 1 1 . 1 1 1 1 . . . 1 2 . 2 2 XP Earned 53222 | 3000 850 790 3338 1698 2864 2610 1450 3436 650 2854 3066 4061 1322 245 1503 1744 883 750 701 2126 1757 510 420 105 609 1080 2577 754 2168 3301 XP Spent 46150 | 2900 . 100 1550 1800 1300 3870 325 5400 . . . 5900 2900 . 2670 3200 . . 3825 . 4600 . . 1500 . . . 4100 . 210 Upgrades 63 | 8 . 2 2 2 2 5 5 4 . . . 12 1 . 10 1 . . 3 . 3 . . 1 . . . 1 . 1 Power Slot 1 | . . . . . 1 . . . . . . . . . . . . . . . . . . . . . . . . . Propulsion Slot 3 | 1 . . . . 1 . . . . . . . . . 1 . . . . . . . . . . . . . . . Utility Slot 13 | 1 . . 1 . . 2 . 2 . . . 2 1 . . 1 . . 1 . 1 . . . . . . 1 . . Weapon Slot 2 | 1 . . . 1 . . . . . . . . . . . . . . . . . . . . . . . . . . Core Integrity 13 | . . . . . . . 3 . . . . 10 . . . . . . . . . . . . . . . . . . Heat Dissipation 2 | . . . . . . 2 . . . . . . . . . . . . . . . . . . . . . . . . Mass Support 3 | 1 . . . . . . . 2 . . . . . . . . . . . . . . . . . . . . . . Inventory Capacity 6 | 2 . . 1 1 . 1 . . . . . . . . . . . . . . . . . 1 . . . . . . Sight Range 1 | . . . . . . . . . . . . . . . 1 . . . . . . . . . . . . . . . Sensor Range 6 | . . 1 . . . . . . . . . . . . 3 . . . 2 . . . . . . . . . . . Terrain Scan Density 5 | . . 1 . . . . 2 . . . . . . . 1 . . . . . . . . . . . . . . 1 Ranged Accuracy 3 | 1 . . . . . . . . . . . . . . 1 . . . . . 1 . . . . . . . . . Hack Attack % 1 | . . . . . . . . . . . . . . . . . . . . . 1 . . . . . . . . . KI Resistance % 1 | 1 . . . . . . . . . . . . . . . . . . . . . . . . . . . . . . TH Resistance % 1 | . . . . . . . . . . . . . . . 1 . . . . . . . . . . . . . . . EX Resistance % 1 | . . . . . . . . . . . . . . . 1 . . . . . . . . . . . . . . . KI Damage % 1 | . . . . . . . . . . . . . . . 1 . . . . . . . . . . . . . . . Protomatter Created 7037 | . 105 96 122 10 92 112 155 204 . 168 140 537 194 137 502 104 215 300 474 504 654 133 402 181 60 75 626 . 532 203 Integrity Restored 17406 | . 315 134 238 65 147 336 351 489 . 558 393 1428 1090 213 553 534 642 1152 1720 1085 863 402 1030 534 118 7 1414 . 1161 434 Core 14170 | . 309 86 208 42 147 336 351 489 . 180 393 1428 715 162 518 534 642 1152 1141 800 601 387 740 444 33 . 1074 . 876 382 Parts 3236 | . 6 48 30 23 . . . . . 378 . . 375 51 35 . . . 579 285 262 15 290 90 85 7 340 . 285 52 Protomatter Decayed 4988 | . . 49 . 40 . . 12 39 . 86 56 241 165 . 312 . 201 . 556 59 376 . 109 . . . 519 . 1827 341 Game ------ Seed CryofiberArmoredNanosword Manual? 0 Play Time 06:29:31 Cumulative 366.7 hours Start 2020.01.08 @ 01:44:16 End 2020.01.09 @ 16:29:16 Sessions 11 Manual Loads 0 Difficulty Rogue Special Mode Winter2019/RPGLIKE Game No. 139 Rogue 139 Adventurer 0 Explorer 0 Win Type 2 Total 12 Types 8/1/1/2/0/0/0 Lore% 88 Gallery% 85 Achievement% 67 Wizard Run 0 Options --------- ASCII 0 Keyboard 0 Movement Numpad Keybinds 0 Fullscreen 0 Font 14/Dina Map View 76x50 Tactical HUD 1 Map Filters NONE Filters NONE Steam 1 RUN: 7b7c1fdb-cd5a-4740-8f84-b6e9659b66e9